fUSD/lending_fUSD_20240426
["ID","MTS","AMOUNT","RATE_DAILY","PERIOD"]
[323629778,1714144280275,-1427.69,0.00012644,2]
[323629779,1714144280285,-1581.09,0.00012644,2]
[323629780,1714144280294,-500.0,0.00012644,2]
[323629781,1714144280303,-500.0,0.00012644,2]
[323629782,1714144280313,-8111.76,0.00012644,2]
[323629783,1714144280322,-881.08,0.00012644,2]
[323629784,1714144280332,-3242.05,0.00012644,2]
[323629785,1714144280341,-2025.69,0.00012644,2]
[323629786,1714144280351,-500.0,0.00012644,2]
[323629787,1714144280361,-4761.42,0.00012644,2]
[323629788,1714144280370,-759.13,0.00012644,2]
[323629789,1714144280379,-958.34,0.00012644,2]
[323629790,1714144280389,-1113.72,0.00012644,2]
[323629791,1714144280399,-2788.8,0.00012644,2]
[323629792,1714144280408,-1025.56,0.00012644,2]
[323629793,1714144280421,-500.0,0.00012644,2]
[323629794,1714144280432,-500.0,0.00012644,2]
[323629795,1714144280442,-500.0,0.00012644,2]
[323629796,1714144280451,-907.6,0.00012644,2]
[323629797,1714144280460,-1596.65,0.00012644,2]
[323629798,1714144280470,-592.32,0.00012644,2]
[323629799,1714144280481,-500.0,0.00012644,2]
[323629800,1714144280490,-1103.38,0.00012644,2]
[323629801,1714144280500,-1620.05,0.00012644,2]
[323629802,1714144280509,-500.0,0.00012644,2]
[323629803,1714144280519,-500.0,0.00012644,2]
[323629804,1714144280528,-500.0,0.00012644,2]
[323629805,1714144280538,-500.0,0.00012644,2]
[323629806,1714144280548,-500.0,0.00012644,2]
[323629807,1714144280557,-900.65,0.00012644,2]
[323629808,1714144280566,-2592.79,0.00012644,2]
[323629809,1714144280575,-6571.64,0.00012644,2]
[323629810,1714144280585,-521.28,0.00012644,2]
[323629811,1714144280595,-582.1,0.00012644,2]
[323629812,1714144280605,-516.88,0.00012644,2]
[323629813,1714144280615,-500.0,0.00012661,2]
[323629814,1714144280629,-500.0,0.00012661,2]
[323629815,1714144280639,-662.31,0.00012661,2]
[323629816,1714144280648,-500.0,0.00012661,2]
[323629817,1714144280658,-504.62525914,0.00012661,2]
[323629818,1714144280670,-500.0,0.00012661,2]
[323629819,1714144280680,-1027.87,0.00012661,2]
[323629820,1714144280690,-500.0,0.00012661,2]
[323629821,1714144280701,-504.42292392,0.00012661,2]
[323629822,1714144280711,-537.7,0.00012661,2]
[323629823,1714144280720,-1329.4,0.00012661,2]
[323629824,1714144280730,-3382.19,0.00012661,2]
[323629825,1714144280739,-575.5,0.00012661,2]
[323629826,1714144280748,-470.85240962,0.00012661,2]
[323629827,1714144280758,-3841.15,0.00012661,2]
[323629828,1714144280767,-500.0,0.00012661,2]
[323629829,1714144280777,-500.0,0.00012661,2]
[323629830,1714144280787,-2727.56,0.00012661,2]
[323629831,1714144280797,-500.0,0.00012661,2]
[323629832,1714144280807,-505.12931177,0.00012661,2]
[323629833,1714144280816,-537.54,0.00012661,2]
[323629834,1714144280825,-500.0,0.00012661,2]
[323629835,1714144280835,-504.54374528,0.00012661,2]
[323629836,1714144280845,-500.0,0.00012661,2]
[323629837,1714144280855,-500.0,0.00012661,2]
[323629838,1714144280865,-500.0,0.00012661,2]
[323629839,1714144280875,-500.0,0.00012661,2]
[323629840,1714144280886,-785.13,0.00012661,2]
[323629841,1714144280896,-500.0,0.00012661,2]
[323629842,1714144280906,-558.17,0.00012661,2]
[323629843,1714144280922,-1116.4,0.00012661,2]
[323629844,1714144280933,-500.0,0.00012661,2]
[323629845,1714144280943,-500.0,0.00012661,2]
[323629846,1714144280953,-500.0,0.00012661,2]
[323629847,1714144280963,-579.13,0.00012661,2]
[323629848,1714144280973,-500.0,0.00012661,2]
[323629849,1714144280983,-957.84,0.00012661,2]
[323629850,1714144280992,-500.0,0.00012661,2]
[323629851,1714144281002,-664.1,0.00012661,2]
[323629852,1714144281011,-500.0,0.00012661,2]
[323629853,1714144281021,-500.0,0.00012661,2]
[323629854,1714144281031,-500.0,0.00012661,2]
[323629855,1714144281040,-882.25,0.00012661,2]
[323629856,1714144281050,-500.0,0.00012661,2]
[323629857,1714144281059,-508.51525731,0.00012661,2]
[323629858,1714144281069,-500.0,0.00012661,2]
[323629859,1714144281078,-764.06,0.00012661,2]
[323629860,1714144281088,-500.0,0.00012661,2]
[323629861,1714144281097,-500.0,0.00012661,2]
[323629862,1714144281106,-500.0,0.00012661,2]
[323629863,1714144281117,-150.0,0.00012661,2]
[323629864,1714144281126,-500.0,0.00012661,2]
[323629865,1714144281136,-502.9635565,0.00012661,2]
[323629866,1714144281145,-500.0,0.00012661,2]
[323629867,1714144281155,-758.65,0.00012661,2]
[323629868,1714144281168,-500.0,0.00012661,2]
[323629869,1714144281177,-500.0,0.00012661,2]
[323629870,1714144281189,-954.46,0.00012661,2]
[323629871,1714144281199,-680.81,0.00012661,2]
[323629872,1714144281208,-500.0,0.00012661,2]
[323629873,1714144281218,-500.0,0.00012661,2]
[323629874,1714144281228,-500.0,0.00012661,2]
[323629875,1714144281237,-500.0,0.00012661,2]
[323629876,1714144281246,-500.0,0.00012661,2]
[323629877,1714144281256,-500.0,0.00012661,2]
[323629878,1714144281266,-500.0,0.00012661,2]
[323629879,1714144281275,-500.0,0.00012661,2]
[323629880,1714144281285,-739.45,0.00012661,2]
[323629881,1714144281294,-500.0,0.00012661,2]
[323629882,1714144281303,-500.0,0.00012661,2]
[323629883,1714144281313,-500.0,0.00012661,2]
[323629884,1714144281322,-500.0,0.00012661,2]
[323629885,1714144281331,-529.62,0.00012661,2]
[323629886,1714144281341,-500.0,0.00012661,2]
[323629887,1714144281350,-500.0,0.00012661,2]
[323629888,1714144281360,-597.21,0.00012661,2]
[323629889,1714144281369,-1069.36,0.00012661,2]
[323629890,1714144281379,-500.0,0.00012661,2]
[323629891,1714144281388,-217.82140937,0.00012661,2]
[323629892,1714144281398,-500.0,0.00012661,2]
[323629893,1714144281408,-500.0,0.00012661,2]
[323629894,1714144281421,-500.0,0.00012661,2]
[323629895,1714144281431,-500.0,0.00012661,2]
[323629896,1714144281440,-500.0,0.00012661,2]
[323629897,1714144281450,-500.0,0.00012661,2]
[323629898,1714144281460,-500.0,0.00012661,2]
[323629899,1714144281469,-500.0,0.00012661,2]
[323629900,1714144281479,-500.0,0.00012661,2]
[323629901,1714144281489,-606.85,0.00012661,2]
[323629902,1714144281498,-500.0,0.00012661,2]
[323629903,1714144281508,-500.0,0.00012661,2]
[323629904,1714144281517,-500.0,0.00012661,2]
[323629905,1714144281526,-743.34,0.00012661,2]
[323629906,1714144281535,-500.0,0.00012661,2]
[323629907,1714144281545,-500.0,0.00012661,2]
[323629908,1714144281555,-500.0,0.00012661,2]
[323629909,1714144281565,-630.39,0.00012661,2]
[323629910,1714144281575,-920.66,0.00012661,2]
[323629911,1714144281584,-500.0,0.00012661,2]
[323629912,1714144281593,-1959.75,0.00012661,2]
[323629913,1714144281608,-500.0,0.00012661,2]
[323629914,1714144281618,-500.0,0.00012661,2]
[323629915,1714144281627,-500.0,0.00012661,2]
[323629916,1714144281637,-2715.22,0.00012661,2]
[323629917,1714144281648,-500.0,0.00012661,2]
[323629918,1714144281658,-500.0,0.00012661,2]
[323629919,1714144281670,-1289.14,0.00012661,2]
[323629920,1714144281680,-500.0,0.00012661,2]
[323629921,1714144281692,-500.0,0.00012661,2]
[323629922,1714144281702,-500.0,0.00012661,2]
[323629923,1714144281712,-1517.61,0.00012661,2]
[323629924,1714144281721,-500.0,0.00012661,2]
[323629925,1714144281731,-1544.68,0.00012661,2]
[323629926,1714144281895,-500.0,0.00012661,2]
[323629927,1714144281906,-2773.44,0.00012661,2]
[323629928,1714144281920,-1704.29,0.00012661,2]
[323629929,1714144281931,-781.06,0.00012661,2]
[323629930,1714144281941,-811.4,0.00012661,2]
[323629931,1714144281951,-3173.09,0.00012661,2]
[323629932,1714144281961,-500.0,0.00012661,2]
[323629933,1714144281972,-500.0,0.00012661,2]
[323629934,1714144281982,-500.0,0.00012661,2]
[323629935,1714144281991,-4359.8,0.00012661,2]
[323629936,1714144282000,-500.0,0.00012661,2]
[323629937,1714144282010,-500.0,0.00012661,2]
[323629938,1714144282019,-903.79,0.00012661,2]
[323629939,1714144282028,-1331.69,0.00012661,2]
[323629940,1714144282037,-500.0,0.00012661,2]
[323629941,1714144282047,-500.0,0.00012661,2]
[323629942,1714144282057,-500.0,0.00012661,2]
[323629943,1714144282066,-500.0,0.00012661,2]
[323629944,1714144282075,-500.0,0.00012661,2]
[323629945,1714144282085,-2216.77,0.00012661,2]
[323629946,1714144282094,-733.22,0.00012661,2]
[323629947,1714144282103,-12108.01,0.00012661,2]
[323629948,1714144282112,-500.0,0.00012661,2]
[323629949,1714144282121,-500.0,0.00012661,2]
[323629950,1714144282130,-500.0,0.00012661,2]
[323629951,1714144282140,-672.43,0.00012661,2]
[323629952,1714144282149,-500.0,0.00012661,2]
[323629953,1714144282159,-500.0,0.00012661,2]
[323629954,1714144282174,-500.0,0.00012661,2]
[323629955,1714144282183,-500.0,0.00012661,2]
[323629956,1714144282193,-7046.77395734,0.000127,2]
[323629957,1714144282202,-2100.0,0.00012702,2]
[323629958,1714144282211,-754.15257926,0.00012704,2]
[323629959,1714144282221,-346.16,0.00012725,2]
[323629960,1714144282230,-2925.0,0.0001274,2]
[323629961,1714144282238,-3205.0,0.0001274,2]
[323629962,1714144282248,-500.0,0.00012744,2]
[323629963,1714144282258,-535.58,0.00012744,2]
[323629964,1714144282267,-500.0,0.00012744,2]
[323629965,1714144282276,-500.0,0.00012744,2]
[323629966,1714144282286,-596.07,0.00012744,2]
[323629967,1714144282295,-500.0,0.00012744,2]
[323629968,1714144282304,-756.67,0.00012744,2]
[323629969,1714144282314,-514.83,0.00012744,2]
[323629970,1714144282323,-500.0,0.00012744,2]
[323629971,1714144282333,-500.0,0.00012744,2]
[323629972,1714144282342,-500.0,0.00012744,2]
[323629973,1714144282352,-500.0,0.00012744,2]
[323629974,1714144282362,-648.48,0.00012744,2]
[323629975,1714144282372,-500.0,0.00012744,2]
[323629976,1714144282381,-2642.42,0.00012744,2]
[323629977,1714144282391,-500.0,0.00012744,2]
[323629978,1714144282401,-775.58,0.00012744,2]
[323629979,1714144282411,-500.0,0.00012744,2]
[323629980,1714144282425,-500.0,0.00012744,2]
[323629981,1714144282434,-500.0,0.00012744,2]
[323629982,1714144282443,-505.04456924,0.00012744,2]
[323629983,1714144282453,-1312.69,0.00012744,2]
[323629984,1714144282463,-500.0,0.00012744,2]
[323629985,1714144282472,-500.0,0.00012744,2]
[323629986,1714144282482,-500.0,0.00012744,2]
[323629987,1714144282491,-500.0,0.00012744,2]
[323629988,1714144282500,-500.0,0.00012744,2]
[323629989,1714144282510,-783.4,0.00012744,2]
[323629990,1714144282519,-504.6433373,0.00012744,2]
[323629991,1714144282529,-500.0,0.00012744,2]
[323629992,1714144282538,-504.79800865,0.00012744,2]
[323629993,1714144282548,-500.0,0.00012744,2]
[323629994,1714144282558,-500.0,0.00012744,2]
[323629995,1714144282568,-500.0,0.00012744,2]
[323629996,1714144282578,-500.0,0.00012744,2]
[323629997,1714144282588,-588.83742107,0.00012744,2]
[323629998,1714144282599,-500.0,0.00012744,2]
[323629999,1714144282609,-500.0,0.00012744,2]
[323630000,1714144282622,-500.0,0.00012744,2]
[323630001,1714144282631,-500.0,0.00012744,2]
[323630002,1714144282641,-500.0,0.00012744,2]
[323630003,1714144282650,-500.0,0.00012744,2]
[323630004,1714144282661,-698.77,0.00012744,2]
[323630005,1714144282673,-500.0,0.00012744,2]
[323630006,1714144282683,-500.0,0.00012744,2]
[323630007,1714144282694,-500.0,0.00012744,2]
[323630008,1714144282704,-500.0,0.00012744,2]
[323630009,1714144282714,-500.0,0.00012744,2]
[323630010,1714144282723,-500.0,0.00012744,2]
[323630011,1714144282733,-500.0,0.00012744,2]
[323630012,1714144282743,-500.0,0.00012744,2]
[323630013,1714144282753,-500.0,0.00012744,2]
[323630014,1714144282763,-735.81,0.00012744,2]
[323630015,1714144282775,-816.18,0.00012744,2]
[323630016,1714144282785,-500.0,0.00012744,2]
[323630017,1714144282796,-883.08,0.00012744,2]
[323630018,1714144282806,-500.0,0.00012744,2]
[323630019,1714144282817,-500.0,0.00012744,2]
[323630020,1714144282827,-501.75268271,0.00012744,2]
[323630021,1714144282836,-500.0,0.00012744,2]
[323630022,1714144282846,-500.0,0.00012744,2]
[323630023,1714144282855,-500.0,0.00012744,2]
[323630024,1714144282864,-500.0,0.00012744,2]
[323630025,1714144282873,-500.0,0.00012744,2]
[323630026,1714144282883,-656.76,0.00012744,2]
[323630027,1714144282892,-500.0,0.00012744,2]
[323630028,1714144282902,-592.42,0.00012744,2]
[323630029,1714144282911,-500.0,0.00012744,2]
[323630030,1714144282926,-505.15,0.00012744,2]
[323630031,1714144282935,-500.0,0.00012744,2]
[323630032,1714144282944,-500.0,0.00012744,2]
[323630033,1714144282953,-500.0,0.00012744,2]
[323630034,1714144282963,-500.0,0.00012744,2]
[323630035,1714144282972,-500.0,0.00012744,2]
[323630036,1714144282982,-500.0,0.00012744,2]
[323630037,1714144282991,-500.0,0.00012744,2]
[323630038,1714144283001,-1504.28,0.00012744,2]
[323630039,1714144283010,-500.0,0.00012744,2]
[323630040,1714144283019,-500.0,0.00012744,2]
[323630041,1714144283028,-500.0,0.00012744,2]
[323630042,1714144283037,-700.46,0.00012744,2]
[323630043,1714144283046,-505.79,0.00012744,2]
[323630044,1714144283055,-500.0,0.00012744,2]
[323630045,1714144283064,-500.0,0.00012744,2]
[323630046,1714144283073,-500.0,0.00012744,2]
[323630047,1714144283082,-500.0,0.00012744,2]
[323630048,1714144283092,-500.0,0.00012744,2]
[323630049,1714144283102,-1660.69,0.00012744,2]
[323630050,1714144283112,-500.0,0.00012744,2]
[323630051,1714144283122,-650.53,0.00012744,2]
[323630052,1714144283132,-2081.9,0.00012744,2]
[323630053,1714144283142,-500.0,0.00012744,2]
[323630054,1714144283152,-500.0,0.00012744,2]
[323630055,1714144283161,-657.82,0.00012744,2]
[323630056,1714144283175,-500.0,0.00012744,2]
[323630057,1714144283185,-500.0,0.00012744,2]
[323630058,1714144283194,-500.0,0.00012744,2]
[323630059,1714144283204,-500.0,0.00012744,2]
[323630060,1714144283213,-505.05,0.00012744,2]
[323630061,1714144283223,-570.36724221,0.00012744,2]
[323630062,1714144283232,-500.0,0.00012744,2]
[323630063,1714144283241,-500.0,0.00012744,2]
[323630064,1714144283251,-500.0,0.00012744,2]
[323630065,1714144283260,-562.21,0.00012744,2]
[323630066,1714144283270,-500.0,0.00012744,2]
[323630067,1714144283279,-969.05,0.00012744,2]
[323630068,1714144283289,-500.0,0.00012744,2]
[323630069,1714144283298,-500.0,0.00012744,2]
[323630070,1714144283307,-500.0,0.00012744,2]
[323630071,1714144283317,-2831.12,0.00012744,2]
[323630072,1714144283326,-844.43,0.00012744,2]
[323630073,1714144283336,-500.0,0.00012744,2]
[323630074,1714144283349,-160.96,0.00012744,2]
[323630075,1714144283358,-500.0,0.00012744,2]
[323630076,1714144283368,-500.0,0.00012744,2]
[323630077,1714144283378,-500.0,0.00012744,2]
[323630078,1714144283387,-500.0,0.00012744,2]
[323630079,1714144283397,-500.0,0.00012744,2]
[323630080,1714144283406,-500.0,0.00012744,2]
[323630081,1714144283420,-932.13,0.00012744,2]
[323630082,1714144283429,-500.0,0.00012744,2]
[323630083,1714144283439,-500.0,0.00012744,2]
[323630084,1714144283448,-500.0,0.00012744,2]
[323630085,1714144283458,-500.0,0.00012744,2]
[323630086,1714144283468,-500.0,0.00012744,2]
[323630087,1714144283478,-500.0,0.00012744,2]
[323630088,1714144283488,-520.61,0.00012744,2]
[323630089,1714144283497,-500.0,0.00012744,2]
[323630090,1714144283507,-500.0,0.00012744,2]
[323630091,1714144283517,-508.16212053,0.00012744,2]
[323630092,1714144283526,-500.0,0.00012744,2]
[323630093,1714144283536,-942.72,0.00012744,2]
[323630094,1714144283545,-500.0,0.00012744,2]
[323630095,1714144283554,-500.0,0.00012744,2]
[323630096,1714144283564,-500.0,0.00012744,2]
[323630097,1714144283574,-500.0,0.00012744,2]
[323630098,1714144283584,-969.99,0.00012744,2]
[323630099,1714144283594,-749.77,0.00012744,2]
[323630100,1714144283606,-500.0,0.00012744,2]
[323630101,1714144283616,-500.0,0.00012744,2]
[323630102,1714144283625,-500.0,0.00012744,2]
[323630103,1714144283635,-500.0,0.00012744,2]
[323630104,1714144283645,-703.62,0.00012744,2]
[323630105,1714144283656,-1102.31,0.00012744,2]
[323630106,1714144283670,-500.0,0.00012744,2]
[323630107,1714144283682,-500.0,0.00012744,2]
[323630108,1714144283691,-677.3,0.00012744,2]
[323630109,1714144283701,-500.0,0.00012744,2]
[323630110,1714144283712,-500.0,0.00012744,2]
[323630111,1714144283722,-500.0,0.00012744,2]
[323630112,1714144283732,-500.0,0.00012744,2]
[323630113,1714144283742,-500.0,0.00012744,2]
[323630114,1714144283751,-500.0,0.00012747,2]
[323630115,1714144283761,-500.0,0.00012747,2]
[323630116,1714144283771,-546.92,0.00012747,2]
[323630117,1714144283780,-500.0,0.00012747,2]
[323630118,1714144283790,-806.39,0.00012747,2]
[323630119,1714144283800,-500.0,0.00012747,2]
[323630120,1714144283810,-590.07,0.00012747,2]
[323630121,1714144283820,-500.0,0.00012747,2]
[323630122,1714144283830,-500.0,0.00012747,2]
[323630123,1714144283839,-918.04,0.00012747,2]
[323630124,1714144283849,-500.0,0.00012747,2]
[323630125,1714144283858,-670.75,0.00012747,2]
[323630126,1714144283868,-500.0,0.00012747,2]
[323630127,1714144283877,-500.0,0.00012747,2]
[323630128,1714144283887,-500.0,0.00012747,2]
[323630129,1714144283897,-833.03,0.00012747,2]
[323630130,1714144283906,-500.0,0.00012747,2]
[323630131,1714144284075,-500.0,0.00012747,2]
[323630132,1714144284085,-402.45746099,0.00012747,2]
[323630133,1714144284095,-661.93,0.00012747,2]
[323630134,1714144284104,-500.0,0.00012747,2]
[323630135,1714144284115,-881.03,0.00012747,2]
[323630136,1714144284125,-500.0,0.00012747,2]
[323630137,1714144284134,-500.0,0.00012747,2]
[323630138,1714144284143,-697.79,0.00012747,2]
[323630139,1714144284153,-717.33,0.00012747,2]
[323630140,1714144284162,-500.0,0.00012747,2]
[323630141,1714144284177,-622.4,0.00012747,2]
[323630142,1714144284187,-500.0,0.00012747,2]
[323630143,1714144284196,-606.6,0.00012747,2]
[323630144,1714144284206,-500.0,0.00012747,2]
[323630145,1714144284215,-500.0,0.00012747,2]
[323630146,1714144284225,-506.89,0.00012747,2]
[323630147,1714144284235,-539.0,0.00012747,2]
[323630148,1714144284245,-445.39,0.00012747,2]
[323630149,1714144284255,-500.0,0.00012747,2]
[323630150,1714144284265,-500.0,0.00012747,2]
[323630151,1714144284275,-500.0,0.00012747,2]
[323630152,1714144284284,-570.27,0.00012747,2]
[323630153,1714144284294,-809.01,0.00012747,2]
[323630154,1714144284303,-500.0,0.00012747,2]
[323630155,1714144284313,-500.0,0.00012747,2]
[323630156,1714144284322,-500.0,0.00012747,2]
[323630157,1714144284332,-747.09,0.00012747,2]
[323630158,1714144284341,-566.68,0.00012747,2]
[323630159,1714144284352,-500.0,0.00012747,2]
[323630160,1714144284362,-946.11,0.00012747,2]
[323630161,1714144284371,-500.0,0.00012747,2]
[323630162,1714144284381,-657.11,0.00012747,2]
[323630163,1714144284391,-500.0,0.00012747,2]
[323630164,1714144284401,-500.0,0.00012747,2]
[323630165,1714144284410,-452.6,0.00012747,2]
[323630166,1714144284423,-689.01,0.00012747,2]
[323630167,1714144284433,-500.0,0.00012747,2]
[323630168,1714144284443,-500.0,0.00012747,2]
[323630169,1714144284453,-500.0,0.00012747,2]
[323630170,1714144284464,-500.0,0.00012747,2]
[323630171,1714144284474,-500.0,0.00012747,2]
[323630172,1714144284483,-500.0,0.00012747,2]
[323630173,1714144284493,-565.55,0.00012747,2]
[323630174,1714144284503,-934.2,0.00012747,2]
[323630175,1714144284512,-838.38,0.00012747,2]
[323630176,1714144284522,-694.38,0.00012747,2]
[323630177,1714144284532,-689.85,0.00012747,2]
[323630178,1714144284541,-500.0,0.00012747,2]
[323630179,1714144284551,-500.0,0.00012747,2]
[323630180,1714144284561,-815.04,0.00012747,2]
[323630181,1714144284571,-644.53,0.00012747,2]
[323630182,1714144284581,-500.0,0.00012747,2]
[323630183,1714144284590,-500.0,0.00012747,2]
[323630184,1714144284602,-500.0,0.00012747,2]
[323630185,1714144284612,-624.08,0.00012747,2]
[323630186,1714144284621,-500.0,0.00012747,2]
[323630187,1714144284630,-500.0,0.00012747,2]
[323630188,1714144284640,-500.0,0.00012747,2]
[323630189,1714144284649,-728.02,0.00012747,2]
[323630190,1714144284659,-500.0,0.00012747,2]
[323630191,1714144284671,-769.5,0.00012747,2]
[323630192,1714144284683,-500.0,0.00012747,2]
[323630193,1714144284693,-306.20890262,0.00012747,2]
[323630194,1714144284702,-500.0,0.00012747,2]
[323630195,1714144284711,-500.0,0.00012747,2]
[323630196,1714144284721,-500.0,0.00012747,2]
[323630197,1714144284731,-565.75,0.00012747,2]
[323630198,1714144284740,-500.0,0.00012747,2]
[323630199,1714144284750,-500.0,0.00012747,2]
[323630200,1714144284759,-570.98,0.00012747,2]
[323630201,1714144284769,-500.0,0.00012747,2]
[323630202,1714144284779,-1856.63,0.00012747,2]
[323630203,1714144284788,-500.0,0.00012747,2]
[323630204,1714144284797,-815.7,0.00012747,2]
[323630205,1714144284807,-500.0,0.00012747,2]
[323630206,1714144284817,-500.0,0.00012747,2]
[323630207,1714144284826,-500.0,0.00012747,2]
[323630208,1714144284835,-500.0,0.00012747,2]
[323630209,1714144284845,-500.0,0.00012747,2]
[323630210,1714144284854,-644.09,0.00012747,2]
[323630211,1714144284863,-500.0,0.00012747,2]
[323630212,1714144284873,-500.0,0.00012747,2]
[323630213,1714144284882,-500.0,0.00012747,2]
[323630214,1714144284892,-500.0,0.00012747,2]
[323630215,1714144284901,-500.0,0.00012747,2]
[323630216,1714144284910,-500.0,0.00012747,2]
[323630217,1714144284925,-500.0,0.00012747,2]
[323630218,1714144284934,-423.97839375,0.00012747,2]
[323630219,1714144284944,-500.0,0.00012747,2]
[323630220,1714144284953,-500.0,0.00012747,2]
[323630221,1714144284962,-500.0,0.00012747,2]
[323630222,1714144284972,-500.0,0.00012747,2]
[323630223,1714144284983,-500.0,0.00012747,2]
[323630224,1714144284992,-659.04,0.00012747,2]
[323630225,1714144285002,-669.23,0.00012747,2]
[323630226,1714144285025,-500.0,0.00012747,2]
[323630227,1714144285042,-500.0,0.00012747,2]
[323630228,1714144285061,-500.0,0.00012747,2]
[323630229,1714144285078,-500.0,0.00012747,2]
[323630230,1714144285096,-500.0,0.00012747,2]
[323630231,1714144285116,-500.0,0.00012747,2]
[323630232,1714144285129,-500.0,0.00012747,2]
[323630233,1714144285150,-500.0,0.00012747,2]
[323630234,1714144285172,-589.96,0.00012747,2]
[323630235,1714144285188,-500.0,0.00012747,2]
[323630236,1714144285208,-500.0,0.00012747,2]
[323630237,1714144285228,-533.29,0.00012747,2]
[323630238,1714144285241,-500.0,0.00012747,2]
[323630239,1714144285258,-531.91,0.00012747,2]
[323630240,1714144285277,-590.28,0.00012747,2]
[323630241,1714144285291,-500.0,0.00012747,2]
[323630242,1714144285307,-500.0,0.00012747,2]
[323630243,1714144285322,-500.0,0.00012747,2]
[323630244,1714144285337,-500.0,0.00012747,2]
[323630245,1714144285353,-510.26,0.00012747,2]
[323630246,1714144285368,-758.48,0.00012747,2]
[323630247,1714144285384,-500.0,0.00012747,2]
[323630248,1714144285399,-500.0,0.00012747,2]
[323630249,1714144285415,-815.14,0.00012747,2]
[323630250,1714144285433,-1077.93,0.00012747,2]
[323630251,1714144285448,-1259.87,0.00012747,2]
[323630252,1714144285462,-500.0,0.00012747,2]
[323630253,1714144285477,-808.56,0.00012747,2]
[323630254,1714144285493,-500.0,0.00012747,2]
[323630255,1714144285509,-500.0,0.00012747,2]
[323630256,1714144285524,-500.0,0.00012747,2]
[323630257,1714144285540,-500.0,0.00012747,2]
[323630258,1714144285555,-500.0,0.00012747,2]
[323630259,1714144285570,-531.05,0.00012747,2]
[323630260,1714144285584,-216.8733079,0.00012747,2]
[323630261,1714144285601,-500.0,0.00012747,2]
[323630262,1714144285621,-563.54,0.00012747,2]
[323630263,1714144285635,-500.0,0.00012747,2]
[323630264,1714144285651,-500.0,0.00012747,2]
[323630265,1714144285666,-500.0,0.00012747,2]
[323630266,1714144285682,-500.0,0.00012747,2]
[323630267,1714144285699,-500.0,0.00012747,2]
[323630268,1714144285715,-500.0,0.00012747,2]
[323630269,1714144285731,-500.0,0.00012747,2]
[323630270,1714144285746,-500.0,0.00012747,2]
[323630271,1714144285762,-1134.79,0.00012747,2]
[323630272,1714144285777,-500.0,0.00012747,2]
[323630273,1714144285794,-500.0,0.00012747,2]
[323630274,1714144285814,-1438.05,0.00012747,2]
[323630275,1714144285829,-500.0,0.00012747,2]
[323630276,1714144285845,-500.0,0.00012747,2]
[323630277,1714144285860,-500.0,0.00012747,2]